fUSD/lending_fUSD_20240301
["ID","MTS","AMOUNT","RATE_DAILY","PERIOD"]
[316044470,1709335764336,164.22580288,0.0002178,2]
[316044471,1709335764650,155.0,0.00021999,2]
[316044472,1709335764700,1044.05743879,0.000219,2]
[316044473,1709335764953,1371.54,0.00021917,2]
[316044474,1709335765132,499.9,0.00018,2]
[316044475,1709335765198,211.07238593,0.00021999,2]
[316044476,1709335765234,500.0,0.00021917,2]
[316044477,1709335765424,500.0,0.00021917,2]
[316044478,1709335768297,295192.62,0.000219,2]
[316044479,1709335769348,500.0,0.00021917,2]
[316044480,1709335770287,601.87,0.00021917,2]
[316044481,1709335771120,1303.05,0.00021917,2]
[316044482,1709335771291,4458.95,0.00021917,2]
[316044483,1709335772769,170.98924085,0.00021927,2]
[316044484,1709335773407,791.47,0.00021917,2]
[316044485,1709335774412,500.0,0.00021917,2]
[316044486,1709335775478,1427.89,0.00021917,2]
[316044487,1709335775722,500.0,0.00021917,2]
[316044488,1709335776258,363.90797229,0.00021999,2]
[316044489,1709335779488,164.22580288,0.0002178,2]
[316044490,1709335780448,500.0,0.00021917,2]
[316044491,1709335781962,155.0,0.00021915,2]
[316044492,1709335782116,586.93,0.00021917,2]
[316044493,1709335782537,164.68443064,0.00021917,2]
[316044494,1709335782647,12883.5932719,0.00021995,2]
[316044495,1709335782843,1048.21,0.00021917,2]
[316044496,1709335783138,500.0,0.00021917,2]
[316044497,1709335783477,898.93,0.00021917,2]
[316044498,1709335784219,59389.0322,0.00021817,2]
[316044499,1709335784584,1648.89,0.00021917,2]
[316044500,1709335784660,907.94,0.00021917,2]
[316044501,1709335786633,500.0,0.00021917,2]
[316044502,1709335786915,500.0,0.00021917,2]
[316044503,1709335786968,819.19,0.00021917,2]
[316044504,1709335787301,500.0,0.00021917,2]
[316044505,1709335787696,2026.54,0.00021917,2]
[316044506,1709335789678,500.0,0.00021917,2]
[316044507,1709335792080,1180.31,0.00021917,2]
[316044508,1709335792224,500.0,0.00021917,2]
[316044514,1709335792740,500.0,0.00021917,2]
[316044515,1709335794229,164.22580288,0.0002178,2]
[316044516,1709335795003,500.0,0.00021917,2]
[316044517,1709335795450,500.0,0.00021917,2]
[316044518,1709335796969,500.0,0.00021917,2]
[316044519,1709335797456,500.0,0.00021917,2]
[316044520,1709335798172,801.81,0.00021917,2]
[316044521,1709335798750,500.0,0.00021917,2]
[316044522,1709335800977,500.0,0.00021917,2]
[316044523,1709335801820,150.0,0.00021999,2]
[316044524,1709335801920,500.0,0.00021917,2]
[316044525,1709335803346,2884.03,0.00021917,2]
[316044526,1709335803379,500.0,0.00021917,2]
[316044527,1709335803841,8965.62,0.00021917,2]
[316044528,1709335805233,500.0,0.00021917,2]
[316044529,1709335806286,2059.11,0.00021917,2]
[316044530,1709335806616,505.78,0.00021917,2]
[316044531,1709335807027,800.0,0.00021973,2]
[316044532,1709335808383,777.57,0.00021917,2]
[316044533,1709335809394,940.54,0.00021917,2]
[316044534,1709335809916,500.0,0.00021917,2]
[316044535,1709335810885,500.0,0.00021917,2]
[316044536,1709335811562,1010.6423,0.0002189,2]
[316044537,1709335811830,493.38403826,0.00021917,2]
[316044538,1709335813083,12010.2382604,0.00021995,2]
[316044539,1709335814703,1906.19,0.00021917,2]
[316044540,1709335814736,7846.4,0.00021917,2]
[316044541,1709335816157,1446.8,0.00021917,2]
[316044542,1709335818750,511.86,0.00021917,2]
[316044543,1709335819316,500.0,0.00021917,2]
[316044544,1709335819410,500.0,0.00021917,2]
[316044545,1709335821590,627.61,0.00021917,2]
[316044546,1709335821641,1713.97,0.00021917,2]
[316044547,1709335822797,500.0,0.00021917,2]
[316044548,1709335823936,500.0,0.00021917,2]
[316044549,1709335824216,164.22580288,0.0002178,2]
[316044550,1709335826223,500.0,0.00021917,2]
[316044551,1709335826429,1182.8,0.00021917,2]
[316044552,1709335827315,5000.0,0.00021927,2]
[316044553,1709335827482,15578.52,0.00021917,2]
[316044554,1709335827568,500.0,0.0002189,2]
[316044555,1709335827706,1496.5,0.00021917,2]
[316044556,1709335827830,500.0,0.0002189,2]
[316044557,1709335828559,500.0,0.0002189,2]
[316044558,1709335829013,2171.25,0.00021917,2]
[316044559,1709335829563,500.0,0.0002189,2]
[316044560,1709335829594,932.99,0.00021917,2]
[316044561,1709335830040,500.0,0.0002189,2]
[316044562,1709335830714,500.0,0.00021917,2]
[316044563,1709335831035,500.0,0.0002189,2]
[316044564,1709335831431,818.08,0.00021917,2]
[316044565,1709335831461,500.0,0.0002189,2]
[316044577,1709335832236,3986.75,0.00021917,2]
[316044580,1709335832495,-414.96820624,0.00022,2]
[316044581,1709335832507,-881.03179376,0.00022,2]
[316044582,1709335832517,-362.76736413,0.00022,2]
[316044583,1709335832527,-1000.0,0.00022,2]
[316044584,1709335832536,-665.18345392,0.00022,2]
[316044585,1709335832574,-334.81654608,0.00022,2]
[316044586,1709335832584,-32390.65434705,0.00022,2]
[316044587,1709335832593,-999.0,0.00022,4]
[316044588,1709335832602,-21175.20150682,0.00022,2]
[316044589,1709335832611,-150.1,0.00022,2]
[316044590,1709335832622,-150.0,0.00022,2]
[316044591,1709335832631,-1000.0,0.00022,2]
[316044592,1709335832641,-2600.0,0.00022,3]
[316044593,1709335832650,-864.7482119,0.00022,2]
[316044594,1709335832660,-427.0,0.00022,2]
[316044595,1709335832669,-151.0,0.00022,7]
[316044596,1709335832679,-3000.0,0.00022,2]
[316044597,1709335832688,-151.0,0.00022,7]
[316044598,1709335832698,-152.277509,0.00022,7]
[316044599,1709335832707,-151.0,0.00022,7]
[316044600,1709335832716,-151.0,0.00022,7]
[316044601,1709335832726,-151.0,0.00022,7]
[316044602,1709335832735,-151.0,0.00022,7]
[316044603,1709335832745,-151.0,0.00022,7]
[316044604,1709335832754,-151.0,0.00022,7]
[316044605,1709335832764,-151.0,0.00022,7]
[316044606,1709335832773,-151.0,0.00022,7]
[316044607,1709335832782,-151.0,0.00022,7]
[316044608,1709335832791,-151.0,0.00022,7]
[316044609,1709335832801,-151.0,0.00022,7]
[316044610,1709335832811,-151.0,0.00022,7]
[316044611,1709335832820,-155.091107,0.00022,7]
[316044612,1709335832829,-151.0,0.00022,7]
[316044613,1709335832838,-151.0,0.00022,7]
[316044614,1709335832848,-151.0,0.00022,7]
[316044615,1709335832857,-151.0,0.00022,7]
[316044616,1709335832866,-151.0,0.00022,7]
[316044617,1709335832875,-151.0,0.00022,7]
[316044618,1709335832885,-165.809073,0.00022,7]
[316044619,1709335832894,-151.0,0.00022,7]
[316044620,1709335832904,-151.0,0.00022,7]
[316044621,1709335832914,-151.0,0.00022,7]
[316044622,1709335832924,-151.0,0.00022,2]
[316044623,1709335832933,-190.874856,0.00022,7]
[316044624,1709335832944,-151.0,0.00022,7]
[316044625,1709335832954,-27341.0,0.00022,2]
[316044626,1709335832963,-1364.0,0.00022,2]
[316044627,1709335832973,-151.0,0.00022,7]
[316044628,1709335832982,-151.0,0.00022,7]
[316044629,1709335832992,-151.0,0.00022,7]
[316044630,1709335833001,-854.29,0.00022,2]
[316044631,1709335833011,-4112.18,0.00022,2]
[316044632,1709335833020,-1500.0,0.00022,2]
[316044633,1709335833030,-151.0,0.00022,2]
[316044634,1709335833039,-1516.57,0.00022,2]
[316044635,1709335833048,-1897.45233161,0.00022,2]
[316044636,1709335833058,-3000.0,0.0002201,2]
[316044637,1709335833067,-150.55,0.00022016,2]
[316044638,1709335833076,-3000.0,0.0002202,2]
[316044639,1709335833086,-3092.4225,0.00022024,2]
[316044640,1709335833095,-291.19287655,0.00022024,2]
[316044641,1709335833104,-184.05869594,0.00022024,2]
[316044642,1709335833113,-222.73162877,0.00022024,2]
[316044643,1709335833123,-550.63960557,0.00022024,2]
[316044644,1709335833132,-155.0,0.00022025,2]
[316044645,1709335833142,-1016.15943733,0.00022025,10]
[316044646,1709335833152,-339.81879093,0.00022025,2]
[316044647,1709335833161,-667.2,0.00022025,2]
[316044648,1709335833170,-587.21,0.00022025,2]
[316044649,1709335833180,-500.0,0.00022025,2]
[316044650,1709335833189,-14032.13,0.00022025,2]
[316044651,1709335833200,-533.11,0.00022025,2]
[316044652,1709335833212,-1015.4,0.00022025,2]
[316044653,1709335833222,-500.0,0.00022025,2]
[316044654,1709335833231,-1022.82,0.00022025,2]
[316044655,1709335833242,-500.0,0.00022025,2]
[316044656,1709335833251,-684.93,0.00022025,2]
[316044657,1709335833260,-603.3,0.00022025,2]
[316044658,1709335833269,-3406.69,0.00022025,2]
[316044659,1709335833279,-500.0,0.00022025,2]
[316044660,1709335833290,-606.38,0.00022025,2]
[316044661,1709335833299,-1740.34,0.00022025,2]
[316044662,1709335833309,-659.37,0.00022025,2]
[316044663,1709335833319,-499.99,0.00022025,2]
[316044664,1709335833328,-2140.18,0.00022025,2]
[316044665,1709335833337,-1276.07,0.00022025,2]
[316044666,1709335833346,-837.52,0.00022025,2]
[316044667,1709335833355,-363.90797229,0.00022025,2]
[316044668,1709335833365,-500.0,0.00022025,2]
[316044669,1709335833376,-2571.87,0.00022025,2]
[316044670,1709335833385,-500.0,0.00022025,2]
[316044671,1709335833395,-155.0,0.00022025,2]
[316044672,1709335833404,-1553.3,0.00022025,2]
[316044673,1709335833414,-500.0,0.00022025,2]
[316044674,1709335833423,-500.0,0.00022025,2]
[316044675,1709335833433,-500.0,0.00022025,2]
[316044676,1709335833442,-500.0,0.00022025,2]
[316044677,1709335833451,-1695.45,0.00022025,2]
[316044678,1709335833462,-712.46,0.00022025,2]
[316044679,1709335833471,-541.87044367,0.00022025,2]
[316044680,1709335833480,-500.0,0.00022025,2]
[316044681,1709335833490,-536.09954353,0.00022025,2]
[316044682,1709335833502,-13527.14,0.00022025,2]
[316044683,1709335833511,-643.02,0.00022025,2]
[316044684,1709335833521,-500.0,0.00022025,2]
[316044685,1709335833530,-500.0,0.00022025,2]
[316044686,1709335833540,-500.0,0.00022025,2]
[316044687,1709335833551,-500.0,0.00022025,2]
[316044688,1709335833562,-619.95663854,0.00022025,2]
[316044689,1709335833571,-500.0,0.00022025,2]
[316044690,1709335833584,-21381.4,0.00022025,2]
[316044691,1709335833594,-1001.67,0.00022025,2]
[316044692,1709335833603,-1132.54,0.00022025,2]
[316044693,1709335833612,-506.90842647,0.00022025,2]
[316044694,1709335833622,-3441.40725326,0.00022025,2]
[316044695,1709335833631,-329249.28408129,0.00022026,2]
[316044696,1709335833640,-164.28144,0.00022026,7]
[316044697,1709335833650,-151.0,0.00022026,7]
[316044698,1709335833659,-271.670678,0.00022026,7]
[316044699,1709335833668,-151.0,0.00022026,7]
[316044700,1709335833677,-151.0,0.00022026,7]
[316044701,1709335833687,-260.347396,0.00022026,7]
[316044702,1709335833696,-235.842624,0.00022026,7]
[316044703,1709335833706,-151.0,0.00022026,7]
[316044704,1709335833715,-151.0,0.00022026,7]
[316044705,1709335833725,-304614.47752109,0.00022027,4]
[316044706,1709335833734,-501.71109449,0.00022027,2]
[316044707,1709335833743,-155.88534469,0.00022027,2]
[316044708,1709335833752,-500.0,0.00022027,2]
[316044709,1709335833761,-587.82853251,0.00022027,2]
[316044710,1709335833770,-549.6798228,0.00022027,2]
[316044711,1709335833779,-587.69081299,0.00022027,2]
[316044712,1709335833790,-500.0,0.00022027,2]
[316044713,1709335833798,-255.70190469,0.00022027,2]
[316044714,1709335833808,-424.01627892,0.00022027,2]
[316044715,1709335833817,-500.0,0.00022027,2]
[316044716,1709335833825,-500.0,0.00022027,2]
[316044717,1709335833834,-500.0,0.00022027,2]
[316044718,1709335833843,-590.32137876,0.00022027,2]
[316044719,1709335833852,-500.0,0.00022027,2]
[316044720,1709335833861,-500.0,0.00022027,2]
[316044721,1709335833870,-500.0,0.00022027,2]
[316044722,1709335833879,-500.0,0.00022027,2]
[316044723,1709335833888,-500.0,0.00022027,2]
[316044724,1709335833896,-500.0,0.00022027,2]
[316044725,1709335833905,-500.0,0.00022027,2]
[316044726,1709335833914,-500.0,0.00022027,2]
[316044727,1709335833922,-500.0,0.00022027,2]
[316044728,1709335833931,-500.0,0.00022027,2]
[316044729,1709335833942,-500.0,0.00022027,2]
[316044730,1709335833951,-500.0,0.00022027,2]
[316044731,1709335833959,-500.0,0.00022027,2]
[316044732,1709335833969,-500.0,0.00022027,2]
[316044733,1709335833978,-500.0,0.00022027,2]
[316044734,1709335833987,-500.0,0.00022027,2]
[316044735,1709335833997,-500.0,0.00022027,2]
[316044736,1709335834006,-500.0,0.00022027,2]
[316044737,1709335834015,-287.92129506,0.00022027,2]
[316044738,1709335834024,-500.0,0.00022027,2]
[316044739,1709335834033,-500.0,0.00022027,2]
[316044740,1709335834043,-500.0,0.00022027,2]
[316044741,1709335834053,-500.0,0.00022027,2]
[316044742,1709335834062,-500.0,0.00022027,2]
[316044743,1709335834072,-500.0,0.00022027,2]
[316044744,1709335834082,-500.0,0.00022027,2]
[316044745,1709335834091,-500.0,0.00022027,2]
[316044746,1709335834100,-614.19690888,0.00022027,2]
[316044747,1709335834110,-524.41498173,0.00022027,2]
[316044748,1709335834119,-500.0,0.00022027,2]
[316044749,1709335834128,-500.0,0.00022027,2]
[316044750,1709335834137,-500.0,0.00022027,2]
[316044751,1709335834212,-500.0,0.00022027,2]
[316044752,1709335834227,-500.0,0.00022027,2]
[316044753,1709335834236,-500.0,0.00022027,2]
[316044754,1709335834245,-500.0,0.00022027,2]
[316044755,1709335834254,-615.80372697,0.00022027,2]
[316044756,1709335834263,-500.0,0.00022027,2]
[316044757,1709335834272,-500.0,0.00022027,2]
[316044758,1709335834281,-500.0,0.00022027,2]
[316044759,1709335834290,-500.0,0.00022027,2]
[316044760,1709335834299,-500.0,0.00022027,2]
[316044761,1709335834309,-256.16448712,0.00022027,2]
[316044762,1709335834317,-500.0,0.00022027,2]
[316044763,1709335834327,-500.0,0.00022027,2]
[316044764,1709335834336,-500.0,0.00022027,2]
[316044765,1709335834345,-509.33715927,0.00022027,2]
[316044766,1709335834354,-500.0,0.00022027,2]
[316044767,1709335834363,-500.0,0.00022027,2]
[316044768,1709335834372,-435.00623999,0.00022027,2]
[316044769,1709335834382,-500.0,0.00022027,2]
[316044770,1709335834391,-500.0,0.00022027,2]
[316044771,1709335834400,-500.0,0.00022027,2]
[316044772,1709335834409,-500.0,0.00022027,2]
[316044773,1709335834418,-500.0,0.00022027,2]
[316044774,1709335834428,-500.0,0.00022027,2]
[316044775,1709335834436,-500.0,0.00022027,2]
[316044776,1709335834446,-500.0,0.00022027,2]
[316044777,1709335834455,-500.0,0.00022027,2]
[316044778,1709335834464,-500.0,0.00022027,2]
[316044779,1709335834474,-500.0,0.00022027,2]
[316044780,1709335834483,-500.0,0.00022027,2]
[316044781,1709335834493,-500.0,0.00022027,2]
[316044782,1709335834502,-308.14653939,0.00022027,2]
[316044783,1709335834511,-500.0,0.00022027,2]
[316044784,1709335834520,-500.0,0.00022027,2]
[316044785,1709335834530,-500.0,0.00022027,2]
[316044786,1709335834539,-645.44920166,0.00022027,2]
[316044787,1709335834548,-500.0,0.00022027,2]
[316044788,1709335834557,-500.0,0.00022027,2]
[316044789,1709335834567,-500.0,0.00022027,2]
[316044790,1709335834577,-500.0,0.00022027,2]
[316044791,1709335834587,-500.0,0.00022027,2]
[316044792,1709335834597,-500.0,0.00022027,2]
[316044793,1709335834606,-500.0,0.00022027,2]
[316044794,1709335834615,-500.0,0.00022027,2]
[316044795,1709335834624,-500.0,0.00022027,2]
[316044796,1709335834633,-500.0,0.00022027,2]
[316044797,1709335834642,-500.0,0.00022027,2]
[316044798,1709335834651,-500.0,0.00022027,2]
[316044799,1709335834660,-500.0,0.00022027,2]
[316044800,1709335834669,-500.0,0.00022027,2]
[316044801,1709335834678,-500.0,0.00022027,2]
[316044802,1709335834687,-500.0,0.00022027,2]
[316044803,1709335834696,-500.0,0.00022027,2]
[316044804,1709335834705,-525.72,0.00022027,2]
[316044805,1709335834714,-500.0,0.00022027,2]
[316044806,1709335834723,-257.98437379,0.00022027,2]
[316044807,1709335834732,-500.0,0.00022027,2]
[316044808,1709335834741,-500.0,0.00022027,2]
[316044809,1709335834751,-500.0,0.00022027,2]
[316044810,1709335834760,-500.0,0.00022027,2]
[316044811,1709335834769,-500.0,0.00022027,2]
[316044812,1709335834778,-392.62590547,0.00022027,2]
[316044813,1709335834788,-500.0,0.00022027,2]
[316044814,1709335834797,-500.0,0.00022027,2]
[316044815,1709335834807,-500.0,0.00022027,2]
[316044816,1709335834817,-511.57800193,0.00022027,2]
[316044817,1709335834827,-529.04,0.00022027,2]
[316044818,1709335834836,-500.0,0.00022027,2]
[316044819,1709335834845,-500.0,0.00022027,2]
[316044820,1709335834853,-500.0,0.00022027,2]
[316044821,1709335834863,-500.0,0.00022027,2]
[316044822,1709335834871,-500.0,0.00022027,2]
[316044823,1709335834880,-500.0,0.00022027,2]
[316044824,1709335834890,-500.0,0.00022027,2]
[316044825,1709335834898,-634.27,0.00022027,2]
[316044826,1709335834907,-500.0,0.00022027,2]
[316044827,1709335834917,-500.0,0.00022027,2]
[316044828,1709335834926,-500.0,0.00022027,2]
[316044829,1709335834936,-500.0,0.00022027,2]
[316044830,1709335834945,-585.34,0.00022027,2]
[316044831,1709335834955,-511.72923373,0.00022027,2]
[316044832,1709335834964,-500.0,0.00022027,2]
[316044833,1709335834974,-500.0,0.00022027,2]
[316044834,1709335834984,-215.01112804,0.00022027,2]
[316044835,1709335834994,-500.0,0.00022027,2]
[316044836,1709335835004,-500.0,0.00022027,2]
[316044837,1709335835014,-243.59505724,0.00022027,2]
[316044838,1709335835023,-500.0,0.00022027,2]
[316044839,1709335835032,-500.0,0.00022027,2]
[316044840,1709335835041,-500.0,0.00022027,2]
[316044841,1709335835050,-500.0,0.00022027,2]
[316044842,1709335835060,-500.0,0.00022027,2]
[316044843,1709335835069,-500.0,0.00022027,2]
[316044844,1709335835078,-500.0,0.00022027,2]
[316044845,1709335835088,-500.0,0.00022027,2]
[316044846,1709335835097,-500.0,0.00022027,2]
[316044847,1709335835107,-500.0,0.00022027,2]
[316044848,1709335835116,-500.0,0.00022027,2]
[316044849,1709335835126,-500.0,0.00022027,2]
[316044850,1709335835135,-500.0,0.00022027,2]
[316044851,1709335835145,-500.0,0.00022027,2]
[316044852,1709335835154,-500.0,0.00022027,2]
[316044853,1709335835164,-500.0,0.00022027,2]
[316044854,1709335835174,-500.0,0.00022027,2]
[316044855,1709335835184,-500.0,0.00022027,2]
[316044856,1709335835194,-500.0,0.00022027,2]
[316044857,1709335835204,-500.0,0.00022027,2]
[316044858,1709335835217,-500.0,0.00022027,2]
[316044859,1709335835227,-500.0,0.00022027,2]
[316044860,1709335835237,-374.16204848,0.00022027,2]
[316044861,1709335835249,-500.0,0.00022027,2]
[316044862,1709335835259,-500.0,0.00022027,2]
[316044863,1709335835269,-500.0,0.00022027,2]
[316044864,1709335835279,-500.0,0.00022027,2]
[316044865,1709335835289,-500.0,0.00022027,2]
[316044866,1709335835299,-500.0,0.00022027,2]
[316044867,1709335835309,-500.0,0.00022027,2]
[316044868,1709335835318,-500.0,0.00022027,2]
[316044869,1709335835327,-500.0,0.00022027,2]
[316044870,1709335835337,-500.0,0.00022027,2]
[316044871,1709335835347,-232.2999786,0.00022027,2]
[316044872,1709335835357,-500.0,0.00022027,2]
[316044873,1709335835367,-500.0,0.00022027,2]
[316044874,1709335835376,-592.68687487,0.00022027,2]
[316044875,1709335835386,-618.49,0.00022027,2]
[316044876,1709335835395,-500.0,0.00022027,2]
[316044877,1709335835406,-500.0,0.00022027,2]
[316044878,1709335835416,-500.0,0.00022027,2]
[316044879,1709335835425,-500.0,0.00022027,2]
[316044880,1709335835435,-500.0,0.00022027,2]
[316044881,1709335835445,-500.0,0.00022027,2]
[316044882,1709335835454,-650.05,0.00022027,2]
[316044883,1709335835464,-500.0,0.00022027,2]
[316044884,1709335835473,-500.0,0.00022027,2]
[316044885,1709335835482,-732.41,0.00022027,2]
[316044886,1709335835492,-500.0,0.00022027,2]
[316044887,1709335835501,-500.0,0.00022027,2]
[316044888,1709335835511,-500.0,0.00022027,2]
[316044889,1709335835520,-500.0,0.00022027,2]
[316044890,1709335835530,-493.54108435,0.00022027,2]
[316044891,1709335835539,-500.0,0.00022027,2]
[316044892,1709335835548,-500.0,0.00022027,2]
[316044893,1709335835558,-500.0,0.00022027,2]
[316044894,1709335835567,-483.43772311,0.00022027,2]
[316044895,1709335835576,-500.0,0.00022027,2]
[316044896,1709335835585,-500.0,0.00022027,2]
[316044897,1709335835595,-500.0,0.00022027,2]
[316044898,1709335835605,-681.2,0.00022027,2]
[316044899,1709335835614,-500.0,0.00022027,2]
[316044900,1709335835626,-500.0,0.00022027,2]
[316044901,1709335835635,-500.0,0.00022027,2]
[316044902,1709335835644,-500.0,0.00022027,2]
[316044903,1709335835654,-500.0,0.00022027,2]
[316044904,1709335835664,-500.0,0.00022027,2]
[316044905,1709335835674,-500.0,0.00022027,2]
[316044906,1709335835683,-1078.74,0.00022027,2]
[316044907,1709335835693,-500.0,0.00022027,2]
[316044908,1709335835702,-551.80087817,0.00022027,2]
[316044909,1709335835712,-500.0,0.00022027,2]
[316044910,1709335835721,-500.0,0.00022027,2]
[316044911,1709335835730,-500.0,0.00022027,2]
[316044912,1709335835739,-500.0,0.00022027,2]
[316044913,1709335835749,-826.27,0.00022027,2]
[316044914,1709335835758,-500.0,0.00022027,2]
[316044915,1709335835767,-500.0,0.00022027,2]
[316044916,1709335835777,-500.0,0.00022027,2]
[316044917,1709335835786,-500.0,0.00022027,2]
[316044918,1709335835796,-500.0,0.00022027,2]
[316044919,1709335835806,-500.0,0.00022027,2]
[316044920,1709335835815,-1003.08,0.00022027,2]
[316044921,1709335835825,-500.0,0.00022027,2]
[316044922,1709335835835,-511.29346683,0.00022027,2]
[316044923,1709335835844,-201.33210563,0.00022027,2]
[316044924,1709335835853,-500.0,0.00022027,2]
[316044925,1709335835863,-507.21184512,0.00022027,2]
[316044926,1709335835872,-622.15593482,0.00022027,2]
[316044927,1709335835881,-500.0,0.00022027,2]
[316044928,1709335835890,-625.55,0.00022027,2]
[316044929,1709335835900,-500.0,0.00022027,2]
[316044930,1709335835909,-500.0,0.00022027,2]
[316044931,1709335835919,-284.01905872,0.00022027,2]
[316044932,1709335835928,-588.71,0.00022027,2]
[316044933,1709335835938,-500.0,0.00022027,2]
[316044934,1709335835948,-500.0,0.00022027,2]
[316044935,1709335835957,-500.0,0.00022027,2]
[316044936,1709335835966,-500.0,0.00022027,2]
[316044937,1709335835976,-500.0,0.00022027,2]
[316044938,1709335835985,-500.0,0.00022027,2]
[316044939,1709335835995,-500.0,0.00022027,2]
[316044940,1709335836005,-247.04323895,0.00022027,2]
[316044941,1709335836015,-500.0,0.00022027,2]
[316044942,1709335836024,-613.98,0.00022027,2]
[316044943,1709335836034,-500.0,0.00022027,2]
[316044944,1709335836043,-500.0,0.00022027,2]
[316044945,1709335836053,-1125.86,0.00022027,2]
[316044946,1709335836062,-500.0,0.00022027,2]
[316044947,1709335836071,-500.0,0.00022027,2]
[316044948,1709335836081,-500.0,0.00022027,2]
[316044949,1709335836090,-535.03857317,0.00022027,2]
[316044950,1709335836100,-500.0,0.00022027,2]
[316044951,1709335836110,-500.0,0.00022027,2]
[316044952,1709335836120,-500.0,0.00022027,2]
[316044953,1709335836130,-945.53,0.00022027,2]
[316044954,1709335836139,-917.94,0.00022027,2]
[316044955,1709335836148,-500.0,0.00022027,2]
[316044956,1709335836158,-500.0,0.00022027,2]
[316044957,1709335836167,-500.0,0.00022027,2]
[316044958,1709335836177,-512.10422333,0.00022027,2]
[316044959,1709335836186,-500.0,0.00022027,2]
[316044960,1709335836196,-501.73,0.00022027,2]
[316044961,1709335836206,-500.0,0.00022027,2]
[316044962,1709335836219,-500.0,0.00022027,2]
[316044963,1709335836229,-500.0,0.00022027,2]
[316044964,1709335836239,-500.0,0.00022027,2]
[316044965,1709335836251,-512.35897619,0.00022027,2]
[316044966,1709335836261,-500.0,0.00022027,2]
[316044967,1709335836270,-500.0,0.00022027,2]
[316044968,1709335836278,-756.27,0.00022027,2]
[316044969,1709335836288,-797.8,0.00022027,2]
[316044970,1709335836298,-500.0,0.00022027,2]
[316044971,1709335836308,-500.0,0.00022027,2]
[316044972,1709335836316,-500.0,0.00022027,2]
[316044973,1709335836326,-1080.49,0.00022027,2]
[316044974,1709335836335,-500.0,0.00022027,2]
[316044975,1709335836345,-500.0,0.00022027,2]
[316044976,1709335836354,-500.0,0.00022027,2]
[316044977,1709335836363,-1247.63,0.00022027,2]
[316044978,1709335836373,-500.0,0.00022027,2]
[316044979,1709335836383,-663.73,0.00022027,2]
[316044980,1709335836393,-500.0,0.00022027,2]
[316044981,1709335836402,-500.0,0.00022027,2]
[316044982,1709335836412,-500.0,0.00022027,2]
[316044983,1709335836421,-500.0,0.00022027,2]
[316044984,1709335836430,-500.0,0.00022027,2]
[316044985,1709335836440,-924.69,0.00022027,2]
[316044986,1709335836449,-500.0,0.00022027,2]
[316044987,1709335836459,-500.0,0.00022027,2]